bitfinex-derivatives/quotes_ETHF0:USTF0_20250502
["timestamp","ask_amount","ask_price","bid_price","bid_amount"]
[1746201873250,3.2078,1865.9,1865.0,0.27134096]
[1746201873455,3.2078,1865.1,1864.9,0.27134096]
[1746201873653,4.8875,1865.8,1865.1,0.27134096]
[1746201873854,3.2078,1865.8,1865.4,0.27134096]
[1746201874051,1.6797,1866.0,1865.5,0.27134096]
[1746201874254,1.6797,1866.0,1865.9,3.2078]
[1746201874460,1.07172,1865.5,1865.4,7.00049528]
[1746201874657,1.6797,1866.0,1865.5,0.27134096]
[1746201874859,0.34432029,1866.2,1865.9,3.47914096]
[1746201875165,0.34432029,1866.2,1865.7,0.27134096]
[1746201875363,0.34432029,1866.2,1866.1,3.47914096]
[1746201875554,0.34432029,1866.2,1866.0,3.2078]
[1746201875756,2.69729,1867.0,1866.2,0.27134096]
[1746201875757,3.2278,1867.0,1866.2,0.27134096]
[1746201876060,3.2078,1866.4,1865.7,3.2078]
[1746201876257,3.2078,1866.4,1864.6,3.51517]
[1746201876258,3.2078,1866.0,1865.4,0.27134096]
[1746201876455,3.696,1866.2,1865.5,40.8]
[1746201876665,1.6405,1866.1,1866.0,0.27134096]
[1746201876967,3.696,1866.2,1866.0,0.27134096]
[1746201877158,1.7056,1866.8,1865.8,0.27134096]
[1746201877364,3.2078,1866.4,1865.9,3.2078]
[1746201877560,2.77689,1866.3,1866.1,3.2078]
[1746201877758,6.3932,1867.0,1866.5,1.0711]
[1746201877759,3.716,1867.0,1866.5,1.0711]
[1746201877961,3.696,1867.0,1866.7,3.47914096]
[1746201878162,1.07078,1867.2,1866.9,0.27134096]
[1746201878466,10.9088,1867.1,1866.6,3.31494668]
[1746201878665,1.07103,1866.7,1866.6,6.68e-06]
[1746201878867,3.2078,1866.7,1865.6,3.2078]
[1746201879056,1.07178,1865.4,1865.2,3.47914096]
[1746201879257,1.07189,1865.2,1865.1,2.09263]
[1746201879467,10.9028,1865.5,1864.4,3.2278]
[1746201879662,0.8082,1866.8,1864.4,3.2278]
[1746201879663,3.2078,1864.9,1864.7,0.32124096]
[1746201879861,1.072,1865.1,1864.8,3.47914096]
[1746201880166,3.696,1864.9,1864.7,0.32124096]
[1746201880367,3.696,1864.9,1864.8,0.27134096]
[1746201880567,0.02,1865.7,1865.5,1.07171]
[1746201880768,5.35426,1867.1,1864.8,10.34936102]
[1746201880769,1.7006,1866.2,1865.6,3.2078]
[1746201880969,1.07105,1866.7,1866.2,0.27134096]
[1746201881165,2.77169,1866.6,1866.1,1.07134]
[1746201881363,2.77169,1866.6,1866.5,3.2078]
[1746201881567,3.2078,1867.1,1866.5,3.47914096]
[1746201881762,0.02,1867.4,1867.1,0.27134096]
[1746201881969,2.67502,1868.5,1867.4,0.27134096]
[1746201881970,5.88291,1868.5,1867.4,0.27134096]
[1746201882167,1.7006,1868.2,1868.0,3.2078]
[1746201882374,1.7006,1868.2,1868.1,3.2078]
[1746201882767,4.9084,1868.2,1867.6,10.19040385]
[1746201882973,1.07044,1867.8,1867.6,3.2078]
[1746201883168,1.5945,1867.7,1867.5,40.8]
[1746201883369,1.07086,1867.0,1866.9,3.2078]
[1746201883575,3.2078,1867.6,1866.6,2.94905096]
[1746201883777,1.07034,1868.0,1867.5,1.07055]
[1746201883968,3.2078,1867.9,1867.5,1.34187096]
[1746201884170,3.696,1868.0,1867.6,0.27134096]
[1746201884375,3.696,1868.0,1867.9,3.2078]
[1746201884573,3.696,1868.0,1867.9,3.47914096]
[1746201884971,3.696,1868.0,1867.6,1.6458]
[1746201884972,3.696,1868.0,1867.6,1.91714096]
[1746201885274,0.42936373,1868.3,1867.9,3.2078]
[1746201885469,0.02,1868.9,1868.2,0.27134096]
[1746201885671,0.0054426,1869.0,1868.2,0.27134096]
[1746201885672,0.0054426,1869.0,1868.8,3.2078]
[1746201885868,0.0054426,1869.0,1868.8,3.47914096]
[1746201886064,0.0054426,1869.0,1868.9,8.3159925]
[1746201886266,0.44308304,1869.0,1868.9,1.6717]
[1746201886469,3.2132426,1869.0,1868.8,3.696]
[1746201886672,0.0054426,1869.0,1868.9,40.8]
[1746201886876,0.0054426,1869.0,1868.9,41.86977]
[1746201887074,3.2132426,1869.0,1868.9,44.76734096]
[1746201887275,3.2078,1870.1,1868.9,52.97514096]
[1746201887572,1.6814,1870.0,1868.9,47.7038]
[1746201887779,1.06971,1869.0,1868.9,3.696]
[1746201887973,3.2078,1869.7,1868.9,3.96734096]
[1746201888176,3.2078,1869.7,1868.9,1.34109096]
[1746201888177,3.696,1869.0,1868.9,1.34109096]
[1746201888370,6.9038,1869.0,1868.6,3.2078]
[1746201888573,1.6814,1868.9,1868.4,0.27134096]
[1746201888767,1.6814,1868.9,1868.6,3.2078]
[1746201888966,1.6814,1868.9,1868.5,40.8]
[1746201889174,5.3774,1868.9,1868.3,3.2078]
[1746201889376,5.3774,1868.9,1868.1,3.47914096]
[1746201889676,3.696,1868.9,1868.3,0.27134096]
[1746201889875,1.03845,1868.9,1868.8,4.54897096]
[1746201890074,0.43196179,1869.6,1869.5,1.34077096]
[1746201890274,3.2078,1869.7,1869.1,0.27134096]
[1746201890477,3.2078,1870.2,1869.1,0.27134096]
[1746201890778,4.7963,1870.2,1869.5,0.27134096]
[1746201890973,1.0691,1870.1,1869.7,1.34063096]
[1746201891178,3.696,1870.1,1870.0,3.2078]
[1746201891377,3.696,1870.1,1870.0,1.34048096]
[1746201891576,3.696,1870.1,1870.0,0.27134096]
[1746201891872,8.696,1870.1,1869.6,0.02]
[1746201892077,1.5885,1870.0,1869.2,0.27134096]
[1746201892279,1.06922,1869.9,1869.7,3.47914096]
[1746201892574,1.5885,1870.0,1869.7,3.47914096]
[1746201892781,3.2078,1869.8,1869.1,3.2078]
[1746201892976,3.2078,1869.2,1868.5,5.13964096]
[1746201893173,3.2078,1869.2,1866.9,16.25010908]
[1746201893174,1.07028,1868.0,1867.8,0.27134096]
[1746201893374,1.07057,1867.5,1867.4,0.02]
[1746201893576,3.2078,1869.0,1867.9,7.11598702]
[1746201893875,3.2078,1869.0,1868.4,3.2078]
[1746201893876,1.07,1868.5,1868.4,3.2078]
[1746201894178,3.696,1868.5,1868.2,3.47914096]
[1746201894379,3.696,1868.5,1868.3,3.47914096]
[1746201894579,3.696,1868.5,1868.4,1.34139096]
[1746201894880,3.2078,1869.9,1868.6,0.27134096]
[1746201895078,2.58841,1869.5,1869.0,3.2078]
[1746201895377,2.58841,1869.6,1869.3,3.47914096]
[1746201895580,2.67263,1870.2,1869.5,3.47914096]
[1746201895581,2.58841,1869.7,1869.5,3.47914096]
[1746201895781,3.65772,1869.7,1869.6,0.27134096]
[1746201895977,1.06931,1869.7,1869.6,3.2078]
[1746201896182,2.58841,1869.7,1869.6,3.47914096]
[1746201896383,2.58841,1869.7,1869.5,0.27134096]
[1746201896574,1.06937,1869.6,1869.5,0.27134096]
[1746201896773,1.06937,1869.6,1868.9,0.02]
[1746201896774,5.79621,1869.6,1868.9,0.02]
[1746201896979,1.06986,1868.8,1868.6,3.47914096]
[1746201897175,2.58841,1868.9,1868.7,1.34118096]
[1746201897480,1.06922,1869.9,1868.9,2.94564096]
[1746201897681,3.2078,1870.3,1869.5,3.47914096]
[1746201897982,1.06914,1870.0,1869.9,3.2078]
[1746201898185,14.57623,1870.3,1869.8,3.2078]
[1746201898372,3.2078,1870.1,1869.1,3.47914096]
[1746201898572,1.06974,1869.0,1868.8,1.94404096]
[1746201898876,1.06979,1868.9,1868.1,2.94680096]
[1746201899071,1.06979,1868.9,1868.8,3.2078]
[1746201899478,7.67448,1868.9,1868.4,3.2078]
[1746201899683,1.07,1868.5,1868.4,3.2078]
[1746201899882,3.2078,1869.4,1868.4,3.47914096]
[1746201900182,1.06954,1869.3,1869.1,3.2078]
[1746201900387,5.88086,1869.9,1869.2,4.54872096]
[1746201900581,3.2078,1869.9,1869.4,3.2078]
[1746201900879,1.06914,1870.0,1869.8,3.2078]
[1746201901089,3.2078,1870.0,1869.3,1.6727]
[1746201901381,1.0696,1869.2,1869.1,0.27134096]
[1746201901578,2.67326,1869.8,1869.0,1.34103096]
[1746201901579,2.67345,1869.6,1869.0,1.34103096]
[1746201901774,1.06923,1869.9,1869.6,0.27134096]
[1746201901983,3.696,1870.0,1869.1,10.29628347]
[1746201902182,0.2211857,2634.9,1868.7,2.67463]
[1746201902183,3.2078,1871.2,1870.0,0.27134096]
[1746201902482,0.02,1871.3,1871.2,0.27134096]
[1746201902780,3.2078,1871.4,1870.9,3.47914096]
[1746201902972,3.2078,1871.4,1870.9,3.2078]
[1746201903176,2.67161,1870.9,1869.9,3.2078]
[1746201903481,3.2078,1869.8,1868.4,0.27134096]
[1746201903686,3.2078,1868.5,1868.0,0.27134096]
[1746201903882,1.07023,1868.1,1868.0,0.00377473]
[1746201904183,3.2078,1866.5,1865.2,3.2078]
[1746201904385,2.67687,1867.2,1865.2,3.2078]
[1746201904386,1.07158,1865.8,1865.3,0.10722135]
[1746201904579,3.2078,1865.9,1865.4,0.10721561]
[1746201904880,3.2078,1866.1,1865.5,7.00245282]
[1746201905082,5.1276,1866.8,1866.0,3.2078]
[1746201905281,3.2078,1866.5,1866.1,0.10717539]
[1746201905585,8.991,1871.6,1867.1,3.2078]
[1746201905785,3.2078,1869.6,1868.2,3.2078]
[1746201906086,3.2078,1868.8,1868.1,3.2078]
[1746201906287,3.2078,1868.8,1867.8,3.2078]
[1746201906480,3.2078,1868.8,1867.6,3.2078]
[1746201906681,4.1655,1869.3,1867.8,3.2078]
[1746201906980,1.07028,1868.0,1867.9,6.4e-06]
[1746201907178,0.02,1868.5,1867.9,6.4e-06]
[1746201907484,3.696,1869.3,1868.4,3.2078]
[1746201907679,4.76554,1869.3,1868.8,3.2078]
[1746201907880,3.696,1869.3,1868.5,6.87552238]
[1746201908087,0.9336,1870.1,1869.1,3.2078]
[1746201908288,1.06936,1869.7,1869.3,3.2078]
[1746201908784,1.06936,1869.7,1869.1,3.2078]
[1746201908785,1.06934,1869.7,1869.1,3.2078]
[1746201908983,0.02,1869.9,1869.1,3.2078]
[1746201909184,3.716,1869.9,1868.8,3.2078]
[1746201909382,3.2078,1869.3,1868.5,0.02]
[1746201909575,4.193,1869.2,1867.9,3.2078]
[1746201909775,1.06974,1869.0,1868.4,1.07002]
[1746201910085,1.9188,1869.2,1868.2,1.5393]
[1746201910288,1.06968,1869.1,1868.6,1.06993]
[1746201910489,1.0697,1869.1,1869.0,3.2078]
[1746201910676,1.9188,1869.2,1868.4,3.2078]
[1746201910981,1.07012,1868.3,1867.9,3.2078]
[1746201911183,1.07012,1868.3,1867.8,1.07036]
[1746201911184,3.696,1868.3,1867.8,4.27819]
[1746201911587,3.696,1868.3,1868.2,4.27797]
[1746201911886,3.696,1868.3,1867.9,4.7403]
[1746201912189,1.06991,1868.7,1868.1,1.07017]
[1746201912385,0.02,1869.0,1868.6,3.2078]
[1746201912586,3.2078,1869.5,1868.4,3.2078]
[1746201912783,3.2078,1869.8,1868.7,3.2078]
[1746201912984,3.2078,1869.8,1868.6,1.0699]
[1746201912985,1.06969,1869.1,1869.0,3.2078]
[1746201913177,3.696,1869.1,1869.0,3.2078]
[1746201913382,3.696,1869.1,1868.8,40.8]
[1746201913582,3.696,1869.1,1868.9,1.06976]
[1746201913882,3.696,1869.1,1868.9,3.2078]
[1746201914283,3.696,1869.1,1868.8,40.8]
[1746201914284,3.696,1869.1,1868.8,44.0078]
[1746201914486,4.76566,1869.1,1869.0,3.2078]
[1746201914986,3.696,1869.1,1869.0,3.2078]
[1746201915192,4.76565,1869.1,1869.0,3.2078]
[1746201915591,3.696,1869.1,1868.4,4.27783]
[1746201915886,3.696,1869.1,1868.2,3.2078]
[1746201915887,1.586,1869.0,1868.2,3.2078]
[1746201916192,2.67472,1868.7,1868.4,3.2078]
[1746201916392,2.67472,1868.7,1867.7,1.5325]
[1746201916393,1.07005,1868.4,1868.3,3.2078]
[1746201916589,1.586,1868.6,1868.3,3.2078]
[1746201916590,1.07003,1868.5,1868.3,3.2078]
[1746201916788,1.7119,1868.4,1868.0,3.2078]
[1746201916989,1.07023,1868.1,1868.0,3.2078]
[1746201917193,4.76623,1868.1,1868.0,3.2078]
[1746201917392,1.07051,1867.6,1867.5,3.26876]
[1746201917597,2.67648,1867.5,1866.7,3.2078]
[1746201917799,1.07091,1867.0,1866.7,1.07102]
[1746201917992,1.07094,1866.9,1866.5,3.2078]
[1746201918196,2.67664,1867.4,1866.7,40.8]
[1746201918400,3.2078,1867.4,1866.4,1.0712]
[1746201918599,1.07084,1867.1,1866.5,1.533]
[1746201918893,3.2078,1867.4,1866.9,1.07089]
[1746201919192,1.07082,1867.1,1866.8,1.07092]
[1746201919493,1.07067,1867.4,1867.1,1.07076]
[1746201919696,3.2078,1867.7,1867.2,1.07072]
[1746201919996,3.2078,1867.7,1866.8,3.2078]
[1746201920298,3.2078,1867.7,1866.7,1.07099]
[1746201920299,1.07089,1867.0,1866.7,1.07099]
[1746201920496,1.07066,1867.4,1866.7,5.88538]
[1746201920698,1.07051,1867.6,1867.2,3.2078]
[1746201920991,6.9038,1867.7,1867.2,3.2078]
[1746201921198,6.9038,1867.7,1866.8,3.90242302]
[1746201921395,1.07076,1867.2,1867.0,1.07082]
[1746201921595,1.07073,1867.3,1867.0,1.07082]
[1746201921792,1.0707,1867.3,1867.1,1.07079]
[1746201922000,6.9038,1867.7,1866.8,2.67744]
[1746201922296,3.696,1867.3,1867.0,3.2078]
[1746201922500,1.07082,1867.1,1867.0,3.2078]
[1746201923198,1.07082,1867.1,1866.8,1.07093]
[1746201923199,8.696,1867.1,1866.7,3.2078]
[1746201923396,3.696,1867.1,1866.7,4.27881]
[1746201923598,1.07094,1866.9,1866.7,3.2078]
[1746201923795,3.696,1867.1,1866.4,45.06636]
[1746201923994,3.696,1867.1,1866.6,3.2078]
[1746201924300,3.2078,1867.4,1866.4,42.3884]
[1746201924301,3.2078,1867.4,1866.9,2.67724]
[1746201924501,1.0707,1867.3,1867.0,3.2078]
[1746201924700,2.67643,1867.5,1867.0,3.2078]
[1746201924899,1.0708,1867.1,1867.0,3.2078]
[1746201925196,2.67715,1867.0,1866.0,3.2078]
[1746201925399,2.67759,1866.7,1866.1,1.07135]
[1746201925590,1.07133,1866.2,1866.0,3.2078]
[1746201925795,2.67744,1866.8,1866.0,3.2078]
[1746201926199,1.07113,1866.6,1866.5,3.2078]
[1746201926399,1.07103,1866.7,1866.5,3.2078]
[1746201926602,3.696,1866.8,1866.7,1.07103]
[1746201926895,3.696,1866.8,1866.7,3.2078]
[1746201927094,1.07109,1866.6,1866.5,3.2078]
[1746201928106,4.76709,1866.6,1866.5,3.2078]
[1746201928298,1.07123,1866.4,1866.0,10.3720259]
[1746201928606,1.07134,1866.2,1866.1,1.07135]
[1746201928911,1.07133,1866.2,1866.1,1.07136]
[1746201929309,3.696,1866.2,1866.0,10.3720259]
[1746201929499,1.07137,1866.1,1866.0,8.2356259]
[1746201929699,1.07137,1866.1,1866.0,7.1642259]
[1746201930097,4.76737,1866.1,1866.0,7.1642259]
[1746201930297,3.696,1866.1,1866.0,8.2356559]
[1746201930707,3.696,1866.1,1866.0,7.1642259]
[1746201931005,3.696,1866.1,1866.0,8.2356559]
[1746201931601,3.696,1866.1,1866.0,7.1642259]
[1746201931803,3.696,1866.1,1866.0,8.2356559]
[1746201932003,3.696,1866.1,1866.0,13.2356559]
[1746201932303,1.07124,1866.4,1866.2,1.07129]
[1746201932502,2.67759,1866.7,1866.0,11.5666059]
[1746201932709,4.27889,1866.6,1865.9,3.2078]
[1746201932909,1.07138,1866.1,1865.9,1.07149]
[1746201933102,4.76735,1866.2,1865.8,1.7238]
[1746201933406,4.76735,1866.2,1864.8,3.2078]
[1746201933407,1.07184,1865.3,1864.8,3.2078]
[1746201933605,1.07184,1865.3,1864.7,14.2872903]
[1746201933606,1.07164,1865.7,1865.2,2.67973]
[1746201933908,1.0717,1865.6,1865.4,1.07174]
[1746201934106,3.2078,1865.9,1865.2,1.7238]
[1746201934301,3.2078,1865.6,1865.1,7.1642259]
[1746201934506,1.07189,1865.2,1865.1,7.1642259]
[1746201934706,5.88697,1865.6,1865.1,8.2361359]
[1746201934909,1.07189,1865.2,1865.1,7.1642259]
[1746201935204,4.76789,1865.2,1865.1,7.1642259]
[1746201935507,6.9038,1865.2,1865.1,7.1642259]
[1746201935912,9.76789,1865.2,1865.1,7.1642259]
[1746201936207,7.97569,1865.2,1865.1,7.1642259]
[1746201936416,4.76789,1865.2,1865.1,7.1642259]
[1746201936608,3.696,1865.2,1865.1,8.2361759]
[1746201936811,3.696,1865.2,1865.1,7.1642259]
[1746201937010,1.07201,1865.0,1864.9,10.56137279]
[1746201937305,4.27981,1865.0,1864.9,10.56137279]
[1746201937508,17.6588,1865.0,1863.8,2.68174]
[1746201937811,3.2078,1864.6,1864.4,6.01831258]
[1746201938014,50.3387,1864.5,1863.7,6.86645236]
[1746201938308,1.0727,1863.8,1863.7,6.86645236]
[1746201938510,4.2805,1863.8,1863.7,6.86645236]
[1746201938710,3.2078,1863.8,1863.7,6.86645236]
[1746201938906,3.2078,1864.1,1863.7,6.86645236]
[1746201939104,1.0727,1863.8,1863.7,6.86645236]
[1746201939512,6.0727,1863.8,1863.7,6.86645236]
[1746201939710,6.0727,1863.8,1863.7,3.41726515]
[1746201939911,1.0727,1863.8,1863.7,3.41726515]
[1746201940113,4.7687,1863.8,1863.7,3.41726515]
[1746201940316,9.7687,1863.8,1863.7,3.41726515]
[1746201940819,1.0729,1863.5,1862.9,1.07317]
[1746201941113,3.2078,1863.4,1862.9,1.07317]
[1746201941321,3.2078,1863.2,1863.0,1.6116]
[1746201941511,1.07341,1862.6,1862.2,0.02]
[1746201941713,4.8142,1862.5,1861.9,2.68536]
[1746201941911,4.8142,1862.5,1861.9,1.6116]
[1746201941912,3.2078,1862.3,1861.9,1.6116]
[1746201942214,3.2078,1862.0,1861.8,1.07385]
[1746201942411,3.2078,1862.0,1861.8,40.8]
[1746201942627,4.8142,1862.2,1862.1,1.07368]
[1746201942812,4.8142,1862.2,1862.0,1.0737]
[1746201943008,4.8142,1862.2,1861.7,1.6116]
[1746201943216,8.5102,1862.2,1862.0,1.07373]
[1746201943416,8.5102,1862.2,1861.9,1.07376]
[1746201943617,8.5102,1862.2,1861.9,1.07374]
[1746201943814,3.696,1862.2,1862.1,1.07368]
[1746201944226,3.696,1862.2,1861.7,1.6116]
[1746201944628,3.696,1862.2,1862.1,1.07368]
[1746201944822,3.2078,1862.9,1862.8,1.07327]
[1746201945027,3.2078,1863.3,1862.7,3.2078]
[1746201945228,3.2078,1863.3,1863.0,1.07312]
[1746201945431,4.28081,1863.3,1862.8,2.66234]
[1746201945632,3.2078,1863.1,1862.8,1.5891]
[1746201945933,3.2078,1862.9,1862.7,1.07331]
[1746201946128,3.2078,1862.9,1862.2,2.70403]
[1746201946129,3.2078,1862.9,1862.3,1.5891]
[1746201946331,3.2078,1862.9,1862.3,42.3835303]
[1746201946634,3.2078,1862.9,1862.3,1.5835303]
[1746201946934,4.28121,1862.6,1862.2,1.07358]
[1746201947127,1.7417,1862.5,1861.8,43.48463]
[1746201947327,1.7417,1862.5,1862.2,1.07356]
[1746201947722,1.7417,1862.5,1861.8,43.48463]
[1746201947922,1.7417,1862.5,1862.2,1.07359]
[1746201948134,5.4377,1862.5,1862.2,1.07359]
[1746201948432,6.51115,1862.5,1862.2,1.07359]
[1746201948636,1.07394,1861.7,1861.4,1.07406]
[1746201948824,1.07382,1861.9,1861.1,2.68563]
[1746201949028,4.28162,1861.9,1861.2,40.8]
[1746201949235,3.696,1861.7,1861.5,1.07398]
[1746201949428,3.696,1861.7,1861.2,40.8]
[1746201949429,3.696,1861.7,1861.6,1.07396]
[1746201949627,3.696,1861.7,1861.1,3.2078]
[1746201949824,4.28185,1861.5,1861.2,1.07417]
[1746201950127,3.2078,1861.3,1861.0,1.07426]
[1746201950524,1.6786,1861.6,1860.9,40.8]
[1746201950733,3.716,1861.7,1861.2,1.07419]
[1746201950734,3.2078,1861.3,1861.2,1.07419]
[1746201950934,3.2078,1861.6,1861.5,1.07402]
[1746201951130,6.9038,1861.6,1861.5,1.07402]
[1746201951335,6.9038,1861.6,1861.4,1.07405]
[1746201951832,9.65638,1861.6,1861.2,1.6057]
[1746201952036,9.65638,1861.6,1861.3,1.07412]
[1746201952236,6.9038,1861.6,1861.5,1.07402]
[1746201953040,3.696,1861.6,1861.5,9.28182]
[1746201953239,3.2078,1861.9,1861.8,1.07385]
[1746201954837,3.2078,1862.1,1861.6,4.30287]
[1746201955036,3.2078,1862.1,1862.0,1.07373]
[1746201955233,3.2078,1862.4,1862.3,1.07351]
[1746201955533,1.5804,1862.7,1862.6,1.07339]
[1746201956131,5.2764,1862.7,1862.6,1.07339]
[1746201956633,5.2764,1862.7,1862.5,1.07339]
[1746201956834,5.2764,1862.7,1862.6,1.07339]
[1746201957547,5.2764,1862.7,1862.3,42.4414]
[1746201957741,3.2078,1862.5,1862.4,1.07348]
[1746201957939,3.2078,1862.5,1862.3,1.07354]
[1746201958134,1.7238,1862.4,1862.3,1.07354]
[1746201958341,6.9038,1862.5,1862.4,1.0735]
[1746201958941,6.9038,1862.5,1862.1,2.68412]
[1746201959240,1.6074,1862.4,1861.9,2.68444]
[1746201959546,4.8152,1862.4,1862.3,1.07356]
[1746201960341,6.9038,1862.4,1862.3,1.07356]
[1746201960541,11.9038,1862.4,1861.1,3.2078]
[1746201960739,3.2078,1861.6,1861.5,1.07402]
[1746201961142,3.696,1861.6,1861.5,6.07402]
[1746201961343,13.4874,1862.3,1862.1,1.07364]
[1746201961539,2.6842,1862.1,1861.2,2.68538]
[1746201961738,3.2078,1861.7,1861.1,4.31892]
[1746201961943,3.2078,1861.7,1861.6,1.07396]
[1746201962144,5.9178,1862.0,1861.5,2.68506]
[1746201962339,5.9178,1862.0,1861.4,45.21079]
[1746201962540,3.2078,1861.8,1861.7,1.07388]
[1746201962746,5.9178,1862.0,1861.8,1.0738]
[1746201963046,1.07386,1861.8,1861.7,1.07388]
[1746201963344,7.97766,1861.8,1861.7,1.07388]
[1746201963544,3.696,1861.8,1861.7,1.07388]
[1746201963841,3.696,1861.8,1861.5,1.07398]
[1746201964047,1.07402,1861.5,1861.4,1.7256]
[1746201964247,4.28181,1861.6,1861.5,1.07402]
[1746201964447,3.2078,1861.6,1861.5,1.07402]
[1746201964641,6.9038,1861.8,1861.7,1.07391]
[1746201964947,1.07404,1861.5,1861.4,1.07405]
[1746201965137,2.6852,1861.4,1861.0,3.2078]
[1746201965334,4.28201,1861.2,1861.1,1.07425]
[1746201965539,4.28199,1861.3,1861.1,1.07421]
[1746201965751,3.2078,1861.3,1861.2,1.07419]
[1746201966243,1.07422,1861.2,1861.1,1.07424]
[1746201966435,6.9038,1861.3,1861.1,1.07425]
[1746201966639,6.9038,1861.3,1861.2,1.07419]
[1746201967243,3.696,1861.3,1861.2,1.07419]
[1746201967445,0.02,1861.8,1861.2,1.07419]
[1746201967446,0.02,1861.8,1861.7,1.07391]
[1746201967649,3.2078,1862.5,1862.4,1.0735]
[1746201968040,3.2078,1862.5,1862.0,3.2078]
[1746201968238,6.9038,1862.5,1861.9,1.7333]
[1746201968543,3.696,1862.5,1862.4,1.0735]
[1746201968748,4.76945,1862.5,1862.3,1.07353]
[1746201968945,4.76945,1862.5,1862.0,40.8]
[1746201968946,1.07359,1862.3,1862.1,2.80286]
[1746201969144,3.696,1862.5,1862.1,1.7292]
[1746201969344,1.07355,1862.4,1862.2,2.80282]
[1746201969543,3.696,1862.5,1862.4,1.0735]
[1746201969846,3.696,1862.5,1862.2,1.7292]
[1746201970246,3.696,1862.5,1862.4,1.0735]
[1746201970442,3.696,1862.5,1862.2,1.7292]
[1746201970651,3.696,1862.5,1862.4,1.0735]
[1746201971145,45.66983,1863.4,1862.9,1.07317]
[1746201971146,6.9038,1863.2,1862.9,1.07317]
[1746201971351,1.07318,1863.0,1862.8,1.07323]
[1746201971647,1.07315,1863.1,1862.7,1.597]
[1746201971941,4.76908,1863.2,1862.9,1.07318]
[1746201972145,3.2078,1863.1,1863.0,1.07316]
[1746201972268,3.696,1863.2,1862.7,1.597]
[1746201972546,1.07327,1862.8,1862.7,1.07331]
[1746201972752,1.07333,1862.7,1862.6,1.07337]
[1746201972946,4.28105,1862.9,1862.8,1.07327]
[1746201973151,7.97703,1862.9,1862.7,1.07329]
[1746201973351,1.07327,1862.8,1862.7,1.07329]
[1746201973548,7.97706,1862.9,1862.7,1.0733]
[1746201973846,6.9038,1862.9,1862.8,1.07327]
[1746201974251,3.696,1862.9,1862.8,1.07327]
[1746201974554,0.75685596,1862.9,1862.8,6.07327]
[1746201975654,0.75685596,1862.9,1862.8,1.07327]
[1746201975852,1.83006596,1862.9,1862.7,1.07328]
[1746201976050,6.00857,1862.8,1862.7,1.07328]
[1746201976251,1.07333,1862.7,1862.2,5.89181]
[1746201976448,3.2078,1862.6,1862.2,3.2078]
[1746201976646,1.7275,1862.5,1862.4,1.0735]
[1746201976846,1.7275,1862.5,1862.3,1.7397]
[1746201977050,2.80096,1862.5,1862.4,1.0735]
[1746201977253,5.4235,1862.5,1862.4,1.0735]
[1746201977848,3.696,1862.5,1862.4,1.0735]
[1746201978250,3.696,1862.5,1862.4,6.0735]
[1746201978455,3.696,1862.5,1862.4,9.2813]
[1746201978659,3.696,1862.5,1862.4,6.0735]
[1746201979156,4.8568,1863.0,1862.9,1.07321]
[1746201979846,3.2078,1863.0,1862.9,1.07321]
[1746201980047,3.2078,1863.2,1863.1,1.07305]
[1746201980350,1.07292,1863.5,1863.0,5.8907]
[1746201980554,1.07294,1863.4,1863.0,5.8907]
[1746201980745,1.07294,1863.4,1863.1,1.6394]
[1746201980945,2.6528,1863.5,1863.3,1.07296]
[1746201981146,3.696,1863.4,1863.3,1.07294]
[1746201981352,3.696,1863.4,1863.1,1.6394]
[1746201981651,3.696,1863.4,1863.3,1.07298]
[1746201982246,5.2759,1863.4,1863.3,1.07298]
[1746201982441,6.34887,1863.4,1863.2,43.51241]
[1746201982649,8.4837,1863.4,1863.3,1.07298]
[1746201982959,6.34884,1863.4,1863.3,1.07298]
[1746201983149,5.2759,1863.4,1863.3,1.07298]
[1746201983351,1.07298,1863.3,1863.2,42.4394]
[1746201983652,1.7471,1863.3,1863.2,40.8]
[1746201983854,1.7471,1863.3,1862.8,2.68308]
[1746201984053,6.9038,1863.4,1863.3,1.07298]
[1746201984249,3.2078,1863.4,1863.3,1.07298]
[1746201985056,3.2078,1863.4,1863.1,42.4536]
[1746201985348,1.7471,1863.3,1863.2,1.07299]
[1746201986153,1.7471,1863.3,1863.1,42.4536]
[1746201986154,5.4431,1863.3,1863.1,1.07308]
[1746201986353,5.4431,1863.3,1862.7,2.68321]
[1746201986354,1.07312,1863.1,1862.8,4.38107]
[1746201986660,1.07312,1863.1,1862.5,4.3271]
[1746201986661,1.07339,1862.6,1862.5,4.28122]
[1746201986844,3.2078,1862.6,1862.3,2.68391]
[1746201987048,1.7337,1863.0,1862.2,4.38182]
[1746201987049,1.7337,1862.8,1862.4,2.68376]
[1746201987352,3.2078,1863.0,1862.9,1.07321]
[1746201987755,4.9415,1863.3,1863.2,1.07304]
[1746201988050,6.01448,1863.3,1863.2,1.07304]
[1746201988250,1.0731,1863.1,1863.0,2.77099]
[1746201988448,4.2809,1863.1,1863.0,2.77099]
[1746201988654,1.0733,1862.8,1862.7,1.07329]
[1746201988851,1.07333,1862.7,1862.6,2.77125]
[1746201989055,4.28113,1862.8,1862.7,1.07333]
[1746201989246,1.07343,1862.6,1862.5,1.07337]
[1746201989552,4.28125,1862.6,1862.3,15.9452903]
[1746201989756,4.2813,1862.4,1862.3,14.2872903]
[1746201989947,4.2813,1862.4,1862.3,15.3608503]
[1746201990148,7.9773,1862.4,1862.3,15.3608503]
[1746201990354,12.9773,1862.4,1862.3,9.5916603]